{"text_format":"3","workbook":"xlsx","n_sheets":3,"sheets":["FBA","VRA","FINANSAVIMO SUMOS"],"not_rendered":{"defined_names":5,"comments":3},"read":"whole","date_system":"1900"}

{"sheet":"FBA","index":0,"n_rows":100,"n_cols":8,"rows_kept":100,"merged":[[0,1,0,7],[1,5,1,7],[2,5,2,7],[4,1,5,7],[6,1,6,7],[7,1,7,7],[8,1,8,7],[9,1,10,7],[11,1,11,5],[12,1,12,7],[13,1,13,7],[15,1,15,7],[16,1,16,7],[17,4,17,7],[18,2,18,4],[46,3,46,4],[52,3,52,4],[61,2,61,4],[93,2,93,4],[95,1,95,4],[95,6,95,7],[96,1,96,4],[96,6,96,7],[98,1,98,4],[98,6,98,7],[99,1,99,4],[99,6,99,7]]}
[null,""]
[{"$nulls":5},"2-ojo VSAFAS „Finansinės būklės ataskaita“"]
[{"$nulls":5},"2 priedas"]
[]
[null,"(Žemesniojo lygio viešojo sektoriaus subjektų, išskyrus mokesčių fondus ir išteklių fondus, finansinės būklės ataskaitos forma)"]
[]
[null,"Gargždų vaikų ir jaunimo laisvalaikio centras"]
[null,"(viešojo sektoriaus subjekto arba viešojo sektoriaus subjektų grupės pavadinimas)"]
[null,"Įm.k.195174984 Laugalių 6 , Gargždai"]
[null,"(viešojo sektoriaus subjekto, parengusio finansinės būklės ataskaitą (konsoliduotąją finansinės būklės ataskaitą), kodas, adresas)"]
[]
[]
[null,"FINANSINĖS BŪKLĖS ATASKAITA"]
[null,"PAGAL  2025-03-31 D. DUOMENIS"]
[]
[null,"2025-04-25 Nr.____"]
[null,"(data)"]
[{"$nulls":4},"Pateikimo valiuta ir tikslumas: eurais "]
[null,"Eil. Nr.","Straipsniai",null,null,"Pastabos Nr. ","Paskutinė ataskaitinio laikotarpio diena","Paskutinė praėjusio ataskaitinio laikotarpio diena"]
[null,"A.","ILGALAIKIS TURTAS",{"$nulls":3},{"$f":"SUM(G21,G27,G37,G38,G39)","v":{"v":785789.5,"d":"785789.50"}},{"$f":"SUM(H21,H27,H37,H38,H39)","v":788458.37}]
[null,"I.","Nematerialusis turtas",{"$nulls":3},{"$f":"SUM(G22:G26)","v":{"v":0,"d":"0.00"}},{"$f":"SUM(H22:H26)","v":{"v":0,"d":"0.00"}}]
[null,"I.1",null,"Plėtros darbai",null,null,"0","0"]
[null,"I.2",null,"Programinė įranga ir jos licencijos",null,null,{"v":0,"d":"0.00"},{"v":0,"d":"0.00"}]
[null,"I.3",null,"Kitas nematerialusis turtas",null,null,"0","0"]
[null,"I.4",null,"Nebaigti projektai ir išankstiniai mokėjimai",null,null,"0","0"]
[null,"I.5",null,"Prestižas",null,null,"0","0"]
[null,"II.","Ilgalaikis materialusis turtas",null,null,"P04",{"$f":"SUM(G28:G36)","v":{"v":785789.5,"d":"785789.50"}},{"$f":"SUM(H28:H36)","v":788458.37}]
[null,"II.1",null,"Žemė",null,null,{"v":0,"d":"0.00"},{"v":0,"d":"0.00"}]
[null,"II.2",null,"Pastatai",null,null,39465.25,39714.67]
[null,"II.3",null,"Infrastruktūros statiniai",null,null,{"v":0,"d":"0.00"},{"v":0,"d":"0.00"}]
[null,"II.4",null,"Kiti statiniai",null,null,11273.89,11339.29]
[null,"II.5",null,"Mašinos ir įrenginiai",null,null,{"v":12825.1,"d":"12825.10"},14231.86]
[null,"II.6",null,"Transporto priemonės",null,null,"0","0"]
[null,"II.7",null,"Baldai, biuro įranga ir kitas ilgalaikis materialusis turtas",null,null,3125.26,4072.55]
[null,"II.8",null,"Kultūros ir kitos vertybės",null,null,{"v":719100,"d":"719100.00"},{"v":719100,"d":"719100.00"}]
[null,"II.9",null,"Nebaigta statyba ir išankstiniai mokėjimai",null,null,{"v":0,"d":"0.00"},{"v":0,"d":"0.00"}]
[null,"III.","Ilgalaikis finansinis turtas",{"$nulls":3},"0","0"]
[null,"IV.","Mineraliniai ištekliai",{"$nulls":3},"0","0"]
[null,"V.","Kitas ilgalaikis turtas",{"$nulls":3},"0","0"]
[null,"B.","BIOLOGINIS TURTAS",{"$nulls":3},"0","0"]
[null,"C.","TRUMPALAIKIS TURTAS",{"$nulls":3},{"$f":"SUM(G42,G48,G49,G56,G57)","v":{"v":72467.68000000001,"d":"72467.68"}},{"$f":"SUM(H42,H48,H49,H56,H57)","v":65092.51}]
[null,"I.","Atsargos",null,null,"P08",{"$f":"SUM(G43:G47)","v":{"v":0,"d":"0.00"}},{"$f":"SUM(H43:H47)","v":{"v":0,"d":"0.00"}}]
[null,"I.1",null,"Strateginės ir neliečiamosios atsargos",null,null,"0","0"]
[null,"I.2",null,"Medžiagos, žaliavos ir ūkinis inventorius",null,null,{"v":0,"d":"0.00"},{"v":0,"d":"0.00"}]
[null,"I.3",null,"Nebaigta gaminti produkcija ir nebaigtos vykdyti sutartys",null,null,"0","0"]
[null,"I.4",null,"Pagaminta produkcija, atsargos, skirtos parduoti (perduoti)",null,null,"0","0"]
[null,"I.5",null,"Ilgalaikis materialusis ir biologinis turtas, skirtas parduoti",null,null,"0","0"]
[null,"II.","Išankstiniai apmokėjimai",null,null,"P09",186.49,295.77]
[null,"III.","Per vienus metus gautinos sumos",null,null,"P10",{"$f":"SUM(G50:G55)","v":{"v":71637.8,"d":"71637.80"}},{"$f":"SUM(H50:H55)","v":63865.55}]
[null,"III.1",null,"Gautinos trumpalaikės finansinės sumos",null,null,"0","0"]
[null,"III.2",null,"Gautini mokesčiai ir socialinės įmokos",null,null,"0","0"]
[null,"III.3",null,"Gautinos finansavimo sumos",null,null,{"v":0,"d":"0.00"},{"v":0,"d":"0.00"}]
[null,"III.4",null,"Gautinos sumos už turto naudojimą, parduotas prekes, turtą, paslaugas",null,null,3430.86,2785.86]
[null,"III.5",null,"Sukauptos gautinos sumos",null,null,68206.94,61079.69]
[null,"III.6",null,"Kitos gautinos sumos",null,null,{"v":0,"d":"0.00"},{"v":0,"d":"0.00"}]
[null,"IV.","Trumpalaikės investicijos",{"$nulls":3},"0","0"]
[null,"V.","Pinigai ir pinigų ekvivalentai",null,null,"P11",643.39,931.19]
[null,null,"IŠ VISO TURTO:",{"$nulls":3},{"$f":"SUM(G20,G40,G41)","v":858257.18},{"$f":"SUM(H20,H40,H41)","v":853550.88}]
[null,"D.","FINANSAVIMO SUMOS",null,null,"P12",{"$f":"SUM(G60:G63)","v":94015.54},{"$f":"SUM(H60:H63)","v":97241.49}]
[null,"I.","Iš valstybės biudžeto ",{"$nulls":3},{"v":0,"d":"0.00"},{"v":0,"d":"0.00"}]
[null,"II.","Iš savivaldybės biudžeto",{"$nulls":3},93602.15,{"v":96380.3,"d":"96380.30"}]
[null,"III.","Iš Europos Sąjungos, užsienio valstybių ir tarptautinių organizacijų",{"$nulls":3},{"v":0,"d":"0.00"},{"v":0,"d":"0.00"}]
[null,"IV. ","Iš kitų šaltinių",{"$nulls":3},413.39,861.19]
[null,"E.","ĮSIPAREIGOJIMAI",{"$nulls":3},{"$f":"SUM(G65,G69)","v":{"v":64314.649999999994,"d":"64314.65"}},{"$f":"SUM(H65,H69)","v":61079.69}]
[null,"I.","Ilgalaikiai įsipareigojimai",null,null,"P15",{"$f":"SUM(G66:G68)","v":1356.67},{"$f":"SUM(H66:H68)","v":1356.67}]
[null,"I.1",null,"Ilgalaikiai finansiniai įsipareigojimai",null,null,"0","0"]
[null,"I.2",null,"Ilgalaikiai atidėjiniai",null,null,1356.67,1356.67]
[null,"I.3 ",null,"Kiti ilgalaikiai įsipareigojimai",null,null,"0","0"]
[null,"II.","Trumpalaikiai įsipareigojimai",null,null,"P17",{"$f":"SUM(G70:G75,G78:G83)","v":{"v":62957.979999999996,"d":"62957.98"}},{"$f":"SUM(H70:H75,H78:H83)","v":{"v":59723.020000000004,"d":"59723.02"}}]
[null,"II.1",null,"Ilgalaikių atidėjinių einamųjų metų dalis ir trumpalaikiai atidėjiniai",null,null,"0","0"]
[null,"II.2",null,"Ilgalaikių įsipareigojimų einamųjų metų dalis",null,null,"0","0"]
[null,"II.3",null,"Trumpalaikiai finansiniai įsipareigojimai",null,null,"0","0"]
[null,"II.4",null,"Mokėtinos subsidijos, dotacijos ir finansavimo sumos",null,null,"0","0"]
[null,"II.5",null,"Mokėtinos sumos į Europos Sąjungos biudžetą",null,null,"0","0"]
[null,"II.6",null,"Mokėtinos sumos į biudžetus ir fondus",null,null,{"$f":"SUM(G76,G77)","v":{"v":0,"d":"0.00"}},{"$f":"SUM(H76,H77)","v":{"v":0,"d":"0.00"}}]
[null,"II.6.1",null,null,"Grąžintinos finansavimo sumos",null,"0","0"]
[null,"II.6.2",null,null,"Kitos mokėtinos sumos biudžetui",null,"0","0"]
[null,"II.7",null,"Mokėtinos socialinės išmokos",null,null,"0","0"]
[null,"II.8",null,"Grąžintini mokesčiai, įmokos ir jų permokos",null,null,"0","0"]
[null,"II.9",null,"Tiekėjams mokėtinos sumos",null,null,3872.41,127.29]
[null,"II.10",null,"Su darbo santykiais susiję įsipareigojimai",null,null,{"v":0,"d":"0.00"},{"v":0,"d":"0.00"}]
[null,"II.11",null,"Sukauptos mokėtinos sumos",null,null,59085.57,59595.73]
[null,"II.12",null,"Kiti trumpalaikiai įsipareigojimai",null,null,"0","0"]
[null,"F.","GRYNASIS TURTAS",null,null,"P18",{"$f":"SUM(G85,G86,G89,G90)","v":699926.99},{"$f":"SUM(H85,H86,H89,H90)","v":{"v":695229.7,"d":"695229.70"}}]
[null,"I.","Dalininkų kapitalas",{"$nulls":3},"0","0"]
[null,"II.","Rezervai",{"$nulls":3},{"$f":"SUM(G87,G88)","v":692373.84},{"$f":"SUM(H87,H88)","v":692373.84}]
[null,"II.1",null,"Tikrosios vertės rezervas",null,null,692373.84,692373.84]
[null,"II.2",null,"Kiti rezervai",null,null,"0","0"]
[null,"III.","Nuosavybės metodo įtaka",{"$nulls":3},"0","0"]
[null,"IV.","Sukauptas perviršis ar deficitas",{"$nulls":3},{"$f":"SUM(G91:G92)","v":7553.15},{"$f":"SUM(H91:H92)","v":2855.86}]
[null,"IV.1",null,"Einamųjų metų perviršis ar deficitas",null,null,4697.29,2855.86]
[null,"IV.2",null,"Ankstesnių metų perviršis ar deficitas",null,null,2855.86,"0"]
[null,"G.","MAŽUMOS DALIS"]
[null,null,"IŠ VISO FINANSAVIMO SUMŲ, ĮSIPAREIGOJIMŲ, GRYNOJO TURTO IR MAŽUMOS DALIES:",{"$nulls":3},{"$f":"SUM(G59,G64,G84,G93)","v":{"v":858257.1799999999,"d":"858257.18"}},{"$f":"SUM(H59,H64,H84,H93)","v":{"v":853550.8799999999,"d":"853550.88"}}]
[]
[null,"Direktorė                            ",{"$nulls":4},"Skaidra  Karalienė"]
[null,"(viešojo sektoriaus subjekto vadovo arba jo įgalioto administracijos vadovo pareigų pavadinimas)",{"$nulls":3},"(parašas)","(vardas ir pavardė)"]
[]
[null,"Biudžetinių įstaigų centralizuotos apskaitos skyriaus vedėja\t\t\t                               ",{"$nulls":4},"Viktorija Kaprizkina"]
[null,"(ataskaitą parengusio asmens pareigų pavadinimas)                   ",{"$nulls":3},"(parašas)","(vardas ir pavardė)"]

{"sheet":"VRA","index":1,"n_rows":64,"n_cols":10,"rows_kept":64,"merged":[[0,1,0,9],[4,1,4,9],[5,1,5,9],[6,1,6,9],[7,1,7,9],[8,1,8,9],[9,1,9,9],[10,1,10,9],[11,1,11,9],[12,1,12,9],[13,1,13,9],[14,1,14,9],[16,1,16,9],[17,1,17,9],[18,1,18,9],[19,1,19,2],[19,3,19,6],[20,3,20,6],[21,3,21,6],[22,3,22,6],[23,3,23,6],[24,3,24,6],[25,3,25,6],[26,3,26,6],[27,3,27,6],[28,3,28,6],[29,3,29,6],[30,3,30,6],[31,3,31,6],[32,3,32,6],[33,3,33,6],[34,3,34,6],[35,3,35,6],[36,3,36,6],[37,3,37,6],[38,3,38,6],[39,3,39,6],[40,3,40,6],[41,3,41,6],[42,3,42,6],[43,3,43,6],[44,3,44,6],[45,3,45,6],[46,3,46,6],[47,3,47,6],[48,3,48,6],[49,3,49,6],[50,3,50,6],[51,3,51,6],[52,3,52,6],[53,3,53,6],[54,3,54,6],[55,3,55,6],[56,3,56,6],[57,3,57,6],[59,1,59,6],[59,8,59,9],[60,1,60,6],[60,8,60,9],[62,1,62,6],[62,8,62,9],[63,1,63,6],[63,8,63,9]]}
[null,""]
[{"$nulls":7},"3-iojo VSAFAS „Veiklos rezultatų ataskaita“"]
[{"$nulls":7},"2 priedas"]
[]
[null,"(Žemesniojo lygio viešojo sektoriaus subjektų, išskyrus mokesčių fondus ir išteklių fondus"]
[null,"(įskaitant socialinės apsaugos fondus), veiklos rezultatų ataskaitos forma)"]
[null,"Gargždų vaikų ir jaunimo laisvalaikio centras"]
[null,"(viešojo sektoriaus subjekto arba viešojo sektoriaus subjektų grupės pavadinimas)"]
[null,"Įm.k.195174984 Laugalių 6 , Gargždai"]
[null,"(viešojo sektoriaus subjekto, parengusio veiklos rezultatų ataskaitą"]
[null,"arba konsoliduotąją veiklos rezultatų ataskaitą,  kodas, adresas)"]
[]
[null,"VEIKLOS REZULTATŲ ATASKAITA"]
[]
[null,"PAGAL  2025-03-31 D. DUOMENIS"]
[]
[null,"2025-04-25  Nr.____"]
[null,"(data)"]
[null,"Pateikimo valiuta ir tikslumas: eurais "]
[null,"Eil. Nr.",null,"Straipsniai",{"$nulls":3},"Pastabos Nr.","Ataskaitinis laikotarpis","Praėjęs ataskaitinis laikotarpis"]
[null,"A.","PAGRINDINĖS VEIKLOS PAJAMOS","PAGRINDINĖS VEIKLOS PAJAMOS",{"$nulls":4},{"$f":"SUM(I22,I27,I28)","v":121799.06},{"$f":"SUM(J22,J27,J28)","v":106941.16}]
[null,"I.","FINANSAVIMO PAJAMOS","FINANSAVIMO PAJAMOS",{"$nulls":4},{"$f":"SUM(I23:I26)","v":113029.06},{"$f":"SUM(J23:J26)","v":98846.16}]
[null,"I.1.","Iš valstybės biudžeto ","Iš valstybės biudžeto ",{"$nulls":4},{"v":11900,"d":"11900.00"},{"v":10200,"d":"10200.00"}]
[null,"I.2.","Iš savivaldybių biudžetų ","Iš savivaldybių biudžetų ",{"$nulls":4},100681.26,{"v":87548.3,"d":"87548.30"}]
[null,"I.3.","Iš ES, užsienio valstybių ir tarptautinių organizacijų lėšų","Iš ES, užsienio valstybių ir tarptautinių organizacijų lėšų",{"$nulls":4},{"v":0,"d":"0.00"},{"v":0,"d":"0.00"}]
[null,"I.4.","Iš kitų finansavimo šaltinių","Iš kitų finansavimo šaltinių",{"$nulls":4},{"v":447.8,"d":"447.80"},1097.86]
[null,"II.","MOKESČIŲ IR SOCIALINIŲ ĮMOKŲ PAJAMOS","MOKESČIŲ IR SOCIALINIŲ ĮMOKŲ PAJAMOS"]
[null,"III.","PAGRINDINĖS VEIKLOS KITOS PAJAMOS ","PAGRINDINĖS VEIKLOS KITOS PAJAMOS ",{"$nulls":3},"P21",{"$f":"SUM(I29)+SUM(I30)","v":{"v":8770,"d":"8770.00"}},{"$f":"SUM(J29)+SUM(J30)","v":{"v":8095,"d":"8095.00"}}]
[null,"III.1.","Pagrindinės veiklos kitos pajamos","Pagrindinės veiklos kitos pajamos",{"$nulls":4},{"v":8770,"d":"8770.00"},{"v":8095,"d":"8095.00"}]
[null,"III.2.","Pervestinų pagrindinės veiklos kitų pajamų suma","Pervestinų pagrindinės veiklos kitų pajamų suma",{"$nulls":4},"0","0"]
[null,"B.","PAGRINDINĖS VEIKLOS SĄNAUDOS","PAGRINDINĖS VEIKLOS SĄNAUDOS",{"$nulls":3},"P22",{"$f":"SUM(I32:I45)","v":117101.77},{"$f":"SUM(J32:J45)","v":102611.63}]
[null,"I.","Darbo užmokesčio ir socialinio draudimo ","DARBO UŽMOKESČIO IR SOCIALINIO DRAUDIMO",{"$nulls":4},93128.16,83662.48]
[null,"II.","Nusidėvėjimo ir amortizacijos","NUSIDĖVĖJIMO IR AMORTIZACIJOS",{"$nulls":4},1783.22,1150.75]
[null,"III.","KOMUNALINIŲ PASLAUGŲ IR ryšių","KOMUNALINIŲ PASLAUGŲ IR RYŠIŲ",{"$nulls":4},15476.49,14554.52]
[null,"IV.","Komandiruočių ","KOMANDIRUOČIŲ",{"$nulls":4},{"v":0,"d":"0.00"},{"v":0,"d":"0.00"}]
[null,"V.","Transporto ","TRANSPORTO",{"$nulls":4},{"v":0,"d":"0.00"},{"v":0,"d":"0.00"}]
[null,"VI.","Kvalifikacijos kėlimo ","KVALIFIKACIJOS KĖLIMO",{"$nulls":4},{"v":583.3,"d":"583.30"},191.16]
[null,"VII.","PAPRASTOJO Remonto IR EKSPLOATAVIMO","PAPRASTOJO REMONTO IR EKSPLOATAVIMO",{"$nulls":4},{"v":39,"d":"39.00"},{"v":0,"d":"0.00"}]
[null,"VIII.","NUVERTĖJIMO IR NURAŠYTŲ SUMŲ","NUVERTĖJIMO IR NURAŠYTŲ SUMŲ",{"$nulls":4},"0","0"]
[null,"IX.","SUNAUDOTŲ IR PARDUOTŲ ATSARGŲ SAVIKAINA","SUNAUDOTŲ IR PARDUOTŲ ATSARGŲ SAVIKAINA",{"$nulls":4},3881.73,1274.91]
[null,"X.","socialinių išmokų","SOCIALINIŲ IŠMOKŲ",{"$nulls":4},{"v":1038,"d":"1038.00"},{"v":0,"d":"0.00"}]
[null,"XI.","nuomos","NUOMOS",{"$nulls":4},"0","0"]
[null,"XII.","finansavimo","FINANSAVIMO",{"$nulls":4},"0","0"]
[null,"XIII.","kitų paslaugų","KITŲ PASLAUGŲ",{"$nulls":4},1171.87,1777.81]
[null,"XIV.","Kitos ","KITOS",{"$nulls":4},"0","0"]
[null,"C.","PAGRINDINĖS VEIKLOS PERVIRŠIS AR DEFICITAS","PAGRINDINĖS VEIKLOS PERVIRŠIS AR DEFICITAS",{"$nulls":4},{"$f":"I21-I31","v":{"v":4697.289999999994,"d":"4697.29"}},{"$f":"J21-J31","v":{"v":4329.529999999999,"d":"4329.53"}}]
[null,"D.","KITOS VEIKLOS REZULTATAS","KITOS VEIKLOS REZULTATAS",{"$nulls":4},{"$f":"IF(TYPE(I48)=1,I48,0)+IF(TYPE(I49)=1,I49,0)-IF(TYPE(I50)=1,I50,0)","v":{"v":0,"d":"0.00"}},{"$f":"IF(TYPE(J48)=1,J48,0)+IF(TYPE(J49)=1,J49,0)-IF(TYPE(J50)=1,J50,0)","v":{"v":0,"d":"0.00"}}]
[null,"I. ","Kitos veiklos pajamos","KITOS VEIKLOS PAJAMOS",{"$nulls":4},{"v":0,"d":"0.00"},{"v":0,"d":"0.00"}]
[null,"II.","PERVESTINOS Į BIUDŽETĄ KITOS VEIKLOS PAJAMOS","PERVESTINOS Į BIUDŽETĄ KITOS VEIKLOS PAJAMOS",{"$nulls":4},"0","0"]
[null,"III. ","Kitos veiklos sąnaudos","KITOS VEIKLOS SĄNAUDOS",{"$nulls":4},"0","0"]
[null,"E.","FINANSINĖS IR INVESTICINĖS VEIKLOS REZULTATAS","FINANSINĖS IR INVESTICINĖS VEIKLOS REZULTATAS",{"$nulls":4},"0","0"]
[null,"F.","APSKAITOS POLITIKOS KEITIMO IR ESMINIŲ APSKAITOS KLAIDŲ TAISYMO ĮTAKA","APSKAITOS POLITIKOS KEITIMO IR ESMINIŲ APSKAITOS KLAIDŲ TAISYMO ĮTAKA",{"$nulls":4},"0","0"]
[null,"G.","PELNO MOKESTIS","PELNO MOKESTIS",{"$nulls":4},"0","0"]
[null,"H.","GRYNASIS PERVIRŠIS AR DEFICITAS PRIEŠ NUOSAVYBĖS METODO ĮTAKĄ","GRYNASIS PERVIRŠIS AR DEFICITAS PRIEŠ NUOSAVYBĖS METODO ĮTAKĄ",{"$nulls":4},{"$f":"SUM(I46,I47,I51,I52,I53)","v":{"v":4697.289999999994,"d":"4697.29"}},{"$f":"SUM(J46,J47,J51,J52,J53)","v":{"v":4329.529999999999,"d":"4329.53"}}]
[null,"I.","NUOSAVYBĖS METODO ĮTAKA","NUOSAVYBĖS METODO ĮTAKA",{"$nulls":4},"0","0"]
[null,"J.","GRYNASIS PERVIRŠIS AR DEFICITAS","GRYNASIS PERVIRŠIS AR DEFICITAS",{"$nulls":4},{"$f":"SUM(I54,I55)","v":{"v":4697.289999999994,"d":"4697.29"}},{"$f":"SUM(J54,J55)","v":{"v":4329.529999999999,"d":"4329.53"}}]
[null,"I.","TENKANTIS KONTROLIUOJANČIAJAM SUBJEKTUI","TENKANTIS KONTROLIUOJANČIAJAM SUBJEKTUI"]
[null,"II.","TENKANTIS MAŽUMOS DALIAI","TENKANTIS MAŽUMOS DALIAI"]
[]
[null,"Direktorė",{"$nulls":6},"Skaidra  Karalienė"]
[null,"(viešojo sektoriaus subjekto vadovas arba jo įgaliotas administracijos vadovas)                           ",{"$nulls":5},"(parašas)","(vardas ir pavardė)"]
[]
[null,"Biudžetinių įstaigų centralizuotos apskaitos skyriaus vedėja\t\t\t",{"$nulls":6},"Viktorija Kaprizkina"]
[null,"vyriausiasis buhalteris (buhalteris)                                                                                      ",{"$nulls":5},"  (parašas)","(vardas ir pavardė)"]

{"sheet":"FINANSAVIMO SUMOS","index":2,"n_rows":26,"n_cols":14,"rows_kept":26,"merged":[[0,1,0,13],[4,1,4,13],[5,1,5,13],[6,5,6,9],[7,1,7,13],[8,6,8,8],[9,1,10,1],[9,2,10,2],[9,3,10,3],[9,4,9,12],[9,13,10,13],[25,1,27,13]]}
[null,""]
[{"$nulls":9},"                                     20-ojo VSAFAS „Finansavimo sumos“"]
[{"$nulls":9},"                                      4 priedas"]
[]
[null,"(Informacijos apie finansavimo sumas pagal šaltinį, tikslinę paskirtį ir jų pokyčius per ataskaitinį laikotarpį pateikimo žemesniojo lygio"]
[null,"finansinių ataskaitų aiškinamajame rašte forma)"]
[{"$nulls":5},"Gargždų vaikų ir jaunimo laisvalaikio centras"]
[null,"FINANSAVIMO SUMOS PAGAL ŠALTINĮ, TIKSLINĘ PASKIRTĮ IR JŲ POKYČIAI PER ATASKAITINĮ LAIKOTARPĮ"]
[{"$nulls":6},"2025-03-31"]
[null,"Eil. Nr.","Finansavimo sumos","Finansavimo sumų likutis ataskaitinio laikotarpio pradžioje","Per ataskaitinį laikotarpį",{"$nulls":8},"Finansavimo sumų likutis ataskaitinio laikotarpio pabaigoje"]
[{"$nulls":4}," Finansavimo sumos (gautos), išskyrus neatlygintinai gautą turtą ","Finansavimo sumų pergrupavimas*","Neatlygintinai gautas turtas","Perduota kitiems viešojo sektoriaus subjektams","Finansavimo sumų sumažėjimas dėl turto pardavimo","Finansavimo sumų sumažėjimas dėl jų panaudojimo savo veiklai","Finansavimo sumų sumažėjimas dėl jų perdavimo ne viešojo sektoriaus subjektams","Finansavimo sumos (grąžintos)"," Finansavimo sumų (gautinų) pasikeitimas"]
[null,1,2,3,4,5,6,7,8,9,10,"11",12,13]
[null,"1.","Iš valstybės biudžeto (išskyrus valstybės biudžeto asignavimų dalį, gautą  iš Europos Sąjungos, užsienio valstybių ir tarptautinių organizacijų):",{"$f":"SUM(D14:D15)","v":{"v":0,"d":"0.00"}},{"v":11900,"d":"11,900.00"},{"v":0,"d":"0.00"},{"v":0,"d":"0.00"},{"v":0,"d":"0.00"},{"v":0,"d":"0.00"},{"v":-11900,"d":"-11,900.00"},{"v":0,"d":"0.00"},{"v":0,"d":"0.00"},{"v":0,"d":"0.00"},{"$f":"SUM(D13:M13)","v":{"v":0,"d":"0.00"}}]
[null,"1.1.","nepiniginiam turtui įsigyti",{"v":0,"d":"0.00"},"0","0","0","0","0","0","0","0","0",{"v":0,"d":"0.00"}]
[null,"1.2.","kitoms išlaidoms kompensuoti",{"v":0,"d":"0.00"},{"v":11900,"d":"11,900.00"},"0","0","0","0",{"v":-11900,"d":"-11,900.00"},"0","0",{"v":0,"d":"0.00"},{"v":0,"d":"0.00"}]
[null,"2.","Iš savivaldybės biudžeto (išskyrus  savivaldybės biudžeto asignavimų  dalį, gautą  iš Europos Sąjungos, užsienio valstybių ir tarptautinių organizacijų):",{"$f":"SUM(D17:D18)","v":{"v":96380.3,"d":"96,380.30"}},{"v":94868.15000000001,"d":"94,868.15"},{"v":0,"d":"0.00"},{"v":0,"d":"0.00"},{"v":0,"d":"0.00"},{"v":0,"d":"0.00"},{"v":-97646.3,"d":"-97,646.30"},{"v":0,"d":"0.00"},{"v":0,"d":"0.00"},{"v":0,"d":"0.00"},{"v":93602.15000000001,"d":"93,602.15"}]
[null,"2.1.","nepiniginiam turtui įsigyti",{"v":96084.53,"d":"96,084.53"},602.13,929.66,"0","0","0",{"v":-4200.66,"d":"-4,200.66"},"0","0",{"v":0,"d":"0.00"},{"v":93415.66,"d":"93,415.66"}]
[null,"2.2.","kitoms išlaidoms kompensuoti",295.77,{"v":94266.02,"d":"94,266.02"},-929.66,"0","0","0",{"v":-93445.64,"d":"-93,445.64"},"0","0",{"v":0,"d":"0.00"},{"v":186.49000000000524,"d":"186.49"}]
[null,"3.","Iš Europos Sąjungos, užsienio valstybių ir tarptautinių organizacijų (finansavimo sumų dalis, kuri gaunama iš Europos Sąjungos, neįskaitant finansvimo sumų iš valstybės ar savivaldybės biudžetų ES  projektams finansuoti):",{"$f":"SUM(D20:D21)","v":{"v":0,"d":"0.00"}},{"v":0,"d":"0.00"},{"v":0,"d":"0.00"},{"v":0,"d":"0.00"},{"v":0,"d":"0.00"},{"v":0,"d":"0.00"},{"v":0,"d":"0.00"},{"v":0,"d":"0.00"},{"v":0,"d":"0.00"},{"v":0,"d":"0.00"},{"v":0,"d":"0.00"}]
[null,"3.1.","nepiniginiam turtui įsigyti",{"v":0,"d":"0.00"},"0","0","0","0","0","0","0","0","0",{"v":0,"d":"0.00"}]
[null,"3.2.","kitoms išlaidoms kompensuoti",{"v":0,"d":"0.00"},"0","0","0","0","0","0","0","0","0",{"v":0,"d":"0.00"}]
[null,"4.","Iš kitų šaltinių:",{"$f":"SUM(D23:D24)","v":861.19},{"v":0,"d":"0.00"},{"v":0,"d":"0.00"},{"v":0,"d":"0.00"},{"v":0,"d":"0.00"},{"v":0,"d":"0.00"},{"v":-447.8,"d":"-447.80"},{"v":0,"d":"0.00"},{"v":0,"d":"0.00"},{"v":0,"d":"0.00"},{"v":413.39000000000004,"d":"413.39"}]
[null,"4.1.","nepiniginiam turtui įsigyti",{"v":0,"d":"0.00"},{"v":0,"d":"0.00"},{"v":447.8,"d":"447.80"},"0","0","0",{"v":-447.8,"d":"-447.80"},"0","0","0",{"v":0,"d":"0.00"}]
[null,"4.2.","kitoms išlaidoms kompensuoti",861.19,{"v":0,"d":"0.00"},{"v":-447.8,"d":"-447.80"},"0","0","0","0","0","0","0",{"v":413.39000000000004,"d":"413.39"}]
[null,"5.","Iš viso finansavimo sumų",{"$f":"SUM(D13,D16,D19,D22)","v":{"v":97241.49,"d":"97,241.49"}},{"v":106768.15000000001,"d":"106,768.15"},{"v":0,"d":"0.00"},{"v":0,"d":"0.00"},{"v":0,"d":"0.00"},{"v":0,"d":"0.00"},{"v":-109994.1,"d":"-109,994.10"},{"v":0,"d":"0.00"},{"v":0,"d":"0.00"},{"v":0,"d":"0.00"},{"v":94015.54000000001,"d":"94,015.54"}]
[null,"* Šioje skiltyje rodomas finansavimo sumų pergrupavimas; praėjusio ataskaitinio laikotarpio klaidų taisymas; valiutos kurso įtaka pinigų likučiams, susijusiems su finansavimo sumomis; finansavimo sumų dalis, pagal 26-ojo VSAFAS „Fondų apskaita ir finansinių ataskaitų rinkinys“ 24 punktą pripažinta valstybės iždo finansavimo pajamomis."]